[Event "Turkish Cup 2024"]
[Site "Denizli"]
[Date "2024.08.04"]
[Round "8"]
[White "Bulgurlu, Okan"]
[Black "Zuberoglu, Ibrahim Berk"]
[Result "1-0"]
[ECO "B20"]
[WhiteElo "1964"]
[BlackElo "1870"]
[Annotator "RC"]
[PlyCount "69"]
[EventDate "2024.08.01"]
[EventType "swiss"]
[EventCountry "TUR"]
[SourceTitle "playchess.com"]
[Source "ChessBase"]
[SourceQuality "1"]
[TimeControl "5400+30"]

1. e4 {[%emt 0:06:00]} c5 {[%emt 0:01:00]} 2. b3 {[%emt 0:00:00]} e5 {[%emt 0:01:30]} 3. Bb2 {[%emt 0:00:00]} Nc6 {[%emt 0:00:30]} 4. Bc4 {[%emt 0:00:00]} Nf6 {[%emt 0:00:30]} 5. d3 {[%emt 0:00:00]} d6 {[%emt 0:05:30]} 6. Ne2 {[%emt 0:01:30]} g6 {[%emt 0:02:30]} 7. O-O {[%emt 0:00:00]} Bg7 {[%emt 0:00:30]} 8. Nbc3 {[%emt 0:01:00]} O-O {[%emt 0:00:00]} 9. Nd5 {[%emt 0:01:30]} Nxd5 {[%emt 0:01:00]} 10. Bxd5 {[%emt 0:00:30]} Ne7 {[%emt 0:00:30]} 11. Bc4 {[%emt 0:00:30]} a6 {[%emt 0:00:30]} 12. a4 {[%emt 0:00:30]} b6 {[%emt 0:00:30]} 13. f4 {[%emt 0:01:30]} Rb8 {[%emt 0:00:30]} 14. b4 {[%emt 0:02:30]} cxb4 {[%emt 0:08:30]} 15. Qd2 {[%emt 0:12:30]} a5 {[%emt 0:05:30]} 16. fxe5 {[%emt 0:00:00]} d5 {[%emt 0:10:30]} 17. exd5 {[%emt 0:00:00]} Nxd5 {[%emt 0:00:00]} 18. Ng3 {[%emt 0:04:30]} Be6 {[%emt 0:20:00]} 19. Ne4 {[%emt 0:00:30]} Nc3 {[%emt 0:04:30]} 20. Nf6+ {[%emt 0:18:30]} Kh8 {[%emt 0:01:30]} 21. Bxc3 {[%emt 0:08:30]} bxc3 {[%emt 0:00:30]} 22. Qxc3 {[%emt 0:05:30]} Rc8 {[%emt 0:05:30]} 23. Rf4 {[%emt 0:05:30]} Bxc4 {[%emt 0:05:30]} 24. dxc4 {[%emt 0:02:30]} Qe7 {[%emt 0:06:00]} 25. Raf1 {[%emt 0:11:14]} Rc5 {[%emt 0:01:05]} 26. Qh3 {[%emt 0:01:33]} h5 {[%emt 0:03:58]} 27. Nd7 {[%emt 0:02:28]} Bxe5 {[%emt 0:02:37]} 28. R4f3 {[%emt 0:02:21]} Rxc4 {[%emt 0:06:41]} 29. Nxf8 {[%emt 0:00:24]} Qxf8 {[%emt 0:03:39]} 30. Rxf7 {[%emt 0:00:27]} Qc5+ {[%emt 0:00:50]} 31. Kh1 {[%emt 0:00:08]} Qd5 {[%emt 0:03:15]} 32. Qe3 {[%emt 0:01:03]} Bg7 {[%emt 0:00:44]} 33. Qe8+ {[%emt 0:00:30]} Kh7 {[%emt 0:00:30]} 34. Rxg7+ {[%emt 0:00:00]} Kxg7 {[%emt 0:00:07]} 35. Qf8+ {[%emt 0:00:00]} 1-0

[Event "Turkish Cup 2024"]
[Site "Denizli"]
[Date "2024.08.04"]
[Round "8"]
[White "Cicek, Bilal Emre"]
[Black "Uysal, Ilyas"]
[Result "1-0"]
[ECO "A36"]
[WhiteElo "1963"]
[BlackElo "1849"]
[Annotator "RC"]
[PlyCount "107"]
[EventDate "2024.08.01"]
[EventType "swiss"]
[EventCountry "TUR"]
[SourceTitle "playchess.com"]
[Source "ChessBase"]
[SourceQuality "1"]
[TimeControl "5400+30"]

1. c4 {[%emt 0:01:00]} d6 {[%emt 0:04:00]} 2. g3 {[%emt 0:00:30]} g6 {[%emt 0:00:30]} 3. Bg2 {[%emt 0:00:00]} Bg7 {[%emt 0:00:30]} 4. Nc3 {[%emt 0:00:00]} c5 {[%emt 0:03:30]} 5. e4 {[%emt 0:00:00]} Nc6 {[%emt 0:00:30]} 6. Nge2 {[%emt 0:00:00]} e6 {[%emt 0:08:30]} 7. O-O {[%emt 0:00:00]} Nge7 {[%emt 0:00:30]} 8. d3 {[%emt 0:00:00]} O-O {[%emt 0:00:00]} 9. a3 {[%emt 0:00:30]} a6 {[%emt 0:01:00]} 10. Rb1 {[%emt 0:00:00]} Rb8 {[%emt 0:15:30]} 11. b4 {[%emt 0:00:00]} Nd4 {[%emt 0:01:30]} 12. Nxd4 {[%emt 0:00:30]} cxd4 {[%emt 0:00:30]} 13. Ne2 {[%emt 0:00:30]} b5 {[%emt 0:02:30]} 14. Bb2 {[%emt 0:01:30]} Qb6 {[%emt 0:04:30]} 15. cxb5 {[%emt 0:01:30]} axb5 {[%emt 0:00:30]} 16. f4 {[%emt 0:01:30]} f5 {[%emt 0:00:30]} 17. Kh1 {[%emt 0:02:30]} e5 {[%emt 0:03:30]} 18. Qb3+ {[%emt 0:00:30]} Kh8 {[%emt 0:00:00]} 19. Bc1 {[%emt 0:00:30]} Bd7 {[%emt 0:01:00]} 20. Bd2 {[%emt 0:00:30]} Rbc8 {[%emt 0:11:30]} 21. Rbc1 {[%emt 0:00:30]} Qa6 {[%emt 0:00:30]} 22. fxe5 {[%emt 0:02:30]} dxe5 {[%emt 0:00:30]} 23. Bg5 {[%emt 0:00:30]} Be6 {[%emt 0:03:30]} 24. Qb2 {[%emt 0:00:30]} Qd6 {[%emt 0:00:30]} 25. Rxc8 {[%emt 0:04:30]} Nxc8 {[%emt 0:02:30]} 26. Qc1 {[%emt 0:02:30]} Nb6 {[%emt 0:00:30]} 27. Qc5 {[%emt 0:01:30]} Qxc5 {[%emt 0:02:30]} 28. bxc5 {[%emt 0:00:00]} Na4 {[%emt 0:00:30]} 29. Be7 {[%emt 0:09:00]} Rc8 {[%emt 0:00:30]} 30. c6 {[%emt 0:00:30]} f4 {[%emt 0:07:30]} 31. gxf4 {[%emt 0:01:30]} Rxc6 {[%emt 0:05:30]} 32. fxe5 {[%emt 0:00:30]} Bxe5 {[%emt 0:00:30]} 33. Nf4 {[%emt 0:00:30]} Bg8 {[%emt 0:04:39]} 34. Nd5 {[%emt 0:00:30]} Kg7 {[%emt 0:00:42]} 35. Bf8+ {[%emt 0:01:30]} Kh8 {[%emt 0:00:07]} 36. Ne7 {[%emt 0:01:30]} Rf6 {[%emt 0:05:31]} 37. Rxf6 {[%emt 0:00:30]} Bxf6 {[%emt 0:00:38]} 38. Nxg8 {[%emt 0:00:30]} Kxg8 {[%emt 0:00:00]} 39. Bd6 {[%emt 0:00:30]} Nc3 {[%emt 0:04:25]} 40. e5 {[%emt 0:00:30]} Bg5 {[%emt 0:00:13]} 41. e6 {[%emt 0:00:30]} h5 {[%emt 0:06:34]} 42. Bc6 {[%emt 0:00:30]} Nd1 {[%emt 0:00:59]} 43. e7 {[%emt 0:00:30]} Nf2+ {[%emt 0:00:47]} 44. Kg2 {[%emt 0:00:30]} Bxe7 {[%emt 0:00:18]} 45. Bxe7 {[%emt 0:00:30]} Nxd3 {[%emt 0:00:06]} 46. Bxb5 {[%emt 0:00:30]} Ne1+ {[%emt 0:01:28]} 47. Kf2 {[%emt 0:00:30]} Nc2 {[%emt 0:00:08]} 48. a4 {[%emt 0:00:00]} Kf7 {[%emt 0:00:09]} 49. a5 {[%emt 0:02:00]} Kxe7 {[%emt 0:01:24]} 50. a6 {[%emt 0:00:30]} d3 {[%emt 0:01:15]} 51. a7 {[%emt 0:00:30]} d2 {[%emt 0:00:55]} 52. Be2 {[%emt 0:00:00]} Nb4 {[%emt 0:00:10]} 53. a8=Q {[%emt 0:01:00]} Nd3+ {[%emt 0:00:12]} 54. Ke3 {[%emt 0:00:00]} 1-0

[Event "Turkish Cup 2024"]
[Site "Denizli"]
[Date "2024.08.04"]
[Round "8"]
[White "Yildiz, Talat"]
[Black "Turgut, Hakan"]
[Result "1/2-1/2"]
[ECO "B15"]
[WhiteElo "1956"]
[BlackElo "2052"]
[Annotator "RC"]
[PlyCount "118"]
[EventDate "2024.08.01"]
[EventType "swiss"]
[EventCountry "TUR"]
[SourceTitle "playchess.com"]
[Source "ChessBase"]
[SourceQuality "1"]
[TimeControl "5400+30"]

1. e4 {[%emt 0:05:00]} c6 {[%emt 0:01:00]} 2. d4 {[%emt 0:00:30]} d5 {[%emt 0:00:00]} 3. Nc3 {[%emt 0:00:30]} dxe4 {[%emt 0:00:00]} 4. Nxe4 {[%emt 0:00:00]} Nf6 {[%emt 0:00:30]} 5. Nxf6+ {[%emt 0:00:00]} exf6 {[%emt 0:00:30]} 6. c3 {[%emt 0:00:30]} Bd6 {[%emt 0:00:00]} 7. Bd3 {[%emt 0:00:30]} O-O {[%emt 0:00:00]} 8. Ne2 {[%emt 0:00:00]} Re8 {[%emt 0:00:30]} 9. Qc2 {[%emt 0:01:00]} h5 {[%emt 0:00:00]} 10. O-O {[%emt 0:00:30]} h4 {[%emt 0:00:00]} 11. h3 {[%emt 0:00:00]} Nd7 {[%emt 0:00:00]} 12. Be3 {[%emt 0:03:00]} Nf8 {[%emt 0:04:00]} 13. Rad1 {[%emt 0:00:30]} Be6 {[%emt 0:07:30]} 14. c4 {[%emt 0:00:30]} Qc7 {[%emt 0:17:30]} 15. Qd2 {[%emt 0:10:30]} Ng6 {[%emt 0:02:30]} 16. f4 {[%emt 0:02:30]} f5 {[%emt 0:03:30]} 17. Kh1 {[%emt 0:06:30]} Qe7 {[%emt 0:06:30]} 18. Rf3 {[%emt 0:04:30]} b5 {[%emt 0:07:30]} 19. b3 {[%emt 0:06:30]} bxc4 {[%emt 0:01:30]} 20. bxc4 {[%emt 0:00:00]} Rab8 {[%emt 0:01:30]} 21. Qc2 {[%emt 0:14:00]} Qf6 {[%emt 0:07:30]} 22. Qa4 {[%emt 0:09:30]} Ne7 {[%emt 0:00:30]} 23. Rb1 {[%emt 0:03:30]} Rxb1+ {[%emt 0:00:30]} 24. Bxb1 {[%emt 0:00:00]} Rb8 {[%emt 0:03:30]} 25. Bd3 {[%emt 0:03:00]} Rb4 {[%emt 0:02:30]} 26. Qa6 {[%emt 0:02:30]} Bb8 {[%emt 0:02:30]} 27. Bd2 {[%emt 0:01:30]} Rb6 {[%emt 0:00:30]} 28. Qa5 {[%emt 0:01:30]} Ng6 {[%emt 0:00:30]} 29. Bc3 {[%emt 0:05:30]} Qe7 {[%emt 0:05:30]} 30. d5 {[%emt 0:02:48]} cxd5 {[%emt 0:00:30]} 31. cxd5 {[%emt 0:00:59]} Bd7 {[%emt 0:00:30]} 32. Bd4 {[%emt 0:00:29]} Rb7 {[%emt 0:00:30]} 33. Re3 {[%emt 0:03:52]} Qb4 {[%emt 0:02:30]} 34. Qxb4 {[%emt 0:06:09]} Rxb4 {[%emt 0:00:30]} 35. a3 {[%emt 0:01:09]} Rb7 {[%emt 0:04:30]} 36. Rf3 {[%emt 0:01:28]} Rb3 {[%emt 0:01:30]} 37. Bc2 {[%emt 0:02:19]} Rxf3 {[%emt 0:00:30]} 38. gxf3 {[%emt 0:00:01]} a6 {[%emt 0:01:35]} 39. Be3 {[%emt 0:00:10]} Bd6 {[%emt 0:01:50]} 40. Bc1 {[%emt 0:00:56]} Ne7 {[%emt 0:03:18]} 41. Bb3 {[%emt 0:00:36]} Bb5 {[%emt 0:02:24]} 42. Nd4 {[%emt 0:00:58]} Bd3 {[%emt 0:01:27]} 43. Nc6 {[%emt 0:03:40]} Nxc6 {[%emt 0:07:26]} 44. dxc6 {[%emt 0:00:01]} Bb5 {[%emt 0:00:13]} 45. Bd5 {[%emt 0:00:41]} Kf8 {[%emt 0:00:05]} 46. Kg2 {[%emt 0:02:32]} Ke7 {[%emt 0:01:27]} 47. Kf2 {[%emt 0:00:31]} Bc5+ {[%emt 0:03:00]} 48. Be3 {[%emt 0:00:35]} Bxe3+ {[%emt 0:00:30]} 49. Kxe3 {[%emt 0:00:00]} Kd6 {[%emt 0:00:00]} 50. Bxf7 {[%emt 0:00:18]} Bxc6 {[%emt 0:00:25]} 51. Bc4 {[%emt 0:00:22]} a5 {[%emt 0:01:02]} 52. Bd3 {[%emt 0:00:08]} Bd7 {[%emt 0:01:06]} 53. Kd4 {[%emt 0:00:09]} Be6 {[%emt 0:01:06]} 54. Bc2 {[%emt 0:01:24]} g6 {[%emt 0:00:21]} 55. Ba4 {[%emt 0:00:16]} Bd5 {[%emt 0:00:35]} 56. Bd1 {[%emt 0:01:12]} Bb7 {[%emt 0:01:09]} 57. Be2 {[%emt 0:00:30]} Bd5 {[%emt 0:00:00]} 58. Bd1 {[%emt 0:00:16]} Bb7 {[%emt 0:00:06]} 59. Be2 {[%emt 0:00:00]} Bd5 {[%emt 0:00:02]} 1/2-1/2

[Event "Turkish Cup 2024"]
[Site "Denizli"]
[Date "2024.08.04"]
[Round "8"]
[White "Hatirli, Ugur Can"]
[Black "Kolat, Ata"]
[Result "1-0"]
[ECO "E38"]
[WhiteElo "1948"]
[BlackElo "1908"]
[Annotator "RC"]
[PlyCount "71"]
[EventDate "2024.08.01"]
[EventType "swiss"]
[EventCountry "TUR"]
[SourceTitle "playchess.com"]
[Source "ChessBase"]
[SourceQuality "1"]
[TimeControl "5400+30"]

1. c4 {[%emt 0:05:00]} Nf6 {[%emt 0:01:00]} 2. d4 {[%emt 0:00:30]} e6 {[%emt 0:00:30]} 3. Nc3 {[%emt 0:00:00]} Bb4 {[%emt 0:00:00]} 4. Qc2 {[%emt 0:00:00]} c5 {[%emt 0:00:00]} 5. dxc5 {[%emt 0:01:30]} Na6 {[%emt 0:00:00]} 6. a3 {[%emt 0:01:30]} Bxc3+ {[%emt 0:00:00]} 7. Qxc3 {[%emt 0:00:30]} Nxc5 {[%emt 0:00:00]} 8. Nf3 {[%emt 0:00:00]} Nce4 {[%emt 0:02:00]} 9. Qc2 {[%emt 0:01:00]} O-O {[%emt 0:01:30]} 10. e3 {[%emt 0:02:30]} b6 {[%emt 0:01:30]} 11. Be2 {[%emt 0:02:30]} Bb7 {[%emt 0:00:30]} 12. O-O {[%emt 0:00:30]} d5 {[%emt 0:02:30]} 13. cxd5 {[%emt 0:04:30]} Qxd5 {[%emt 0:01:30]} 14. Rd1 {[%emt 0:02:30]} Qf5 {[%emt 0:02:30]} 15. Qc7 {[%emt 0:11:30]} Bd5 {[%emt 0:03:30]} 16. Qe5 {[%emt 0:01:30]} Qg6 {[%emt 0:06:30]} 17. Ne1 {[%emt 0:04:30]} Ng5 {[%emt 0:10:30]} 18. f3 {[%emt 0:04:30]} Bb3 {[%emt 0:12:30]} 19. Rd4 {[%emt 0:01:30]} Rac8 {[%emt 0:07:30]} 20. h4 {[%emt 0:02:30]} Nh3+ {[%emt 0:20:30]} 21. Kf1 {[%emt 0:00:30]} Nh5 {[%emt 0:02:30]} 22. Rg4 {[%emt 0:01:30]} Rc5 {[%emt 0:08:43]} 23. Qh2 {[%emt 0:01:30]} Qf6 {[%emt 0:03:44]} 24. Rb4 {[%emt 0:09:30]} Rfc8 {[%emt 0:05:38]} 25. Rxb3 {[%emt 0:00:30]} Qxh4 {[%emt 0:00:00]} 26. Qxh3 {[%emt 0:17:30]} Ng3+ {[%emt 0:00:12]} 27. Qxg3 {[%emt 0:01:30]} Qxg3 {[%emt 0:00:06]} 28. Rc3 {[%emt 0:01:30]} Rxc3 {[%emt 0:01:42]} 29. bxc3 {[%emt 0:00:30]} Rc5 {[%emt 0:02:08]} 30. f4 {[%emt 0:01:30]} Rxc3 {[%emt 0:02:19]} 31. Bd2 {[%emt 0:01:30]} Rc7 {[%emt 0:00:45]} 32. Nf3 {[%emt 0:03:56]} Qg6 {[%emt 0:02:26]} 33. Rd1 {[%emt 0:01:13]} h6 {[%emt 0:00:47]} 34. Be1 {[%emt 0:03:39]} Qh5 {[%emt 0:00:47]} 35. Rd8+ {[%emt 0:00:19]} Kh7 {[%emt 0:00:19]} 36. Ng5+ {[%emt 0:00:14]} 1-0

[Event "Turkish Cup 2024"]
[Site "Denizli"]
[Date "2024.08.04"]
[Round "8"]
[White "Yardimci, Can"]
[Black "Sabahi, Ali Can"]
[Result "1-0"]
[ECO "C00"]
[WhiteElo "1930"]
[BlackElo "1882"]
[Annotator "RC"]
[PlyCount "75"]
[EventDate "2024.08.01"]
[EventType "swiss"]
[EventCountry "TUR"]
[SourceTitle "playchess.com"]
[Source "ChessBase"]
[SourceQuality "1"]
[TimeControl "5400+30"]

1. e4 {[%emt 0:01:00]} e6 {[%emt 0:09:00]} 2. d3 {[%emt 0:00:00]} d5 {[%emt 0:00:30]} 3. Nd2 {[%emt 0:00:00]} c5 {[%emt 0:00:30]} 4. Ngf3 {[%emt 0:00:30]} Nf6 {[%emt 0:00:00]} 5. g3 {[%emt 0:00:30]} Be7 {[%emt 0:00:00]} 6. Bg2 {[%emt 0:00:30]} O-O {[%emt 0:00:30]} 7. O-O {[%emt 0:00:30]} Nc6 {[%emt 0:00:30]} 8. Re1 {[%emt 0:00:30]} Rb8 {[%emt 0:01:30]} 9. e5 {[%emt 0:02:30]} Nd7 {[%emt 0:00:30]} 10. Nf1 {[%emt 0:00:00]} b5 {[%emt 0:00:00]} 11. Bf4 {[%emt 0:04:00]} a5 {[%emt 0:00:00]} 12. h4 {[%emt 0:01:30]} a4 {[%emt 0:00:30]} 13. N1h2 {[%emt 0:02:30]} a3 {[%emt 0:02:30]} 14. bxa3 {[%emt 0:07:30]} Nd4 {[%emt 0:07:30]} 15. Nxd4 {[%emt 0:05:30]} cxd4 {[%emt 0:00:30]} 16. Qg4 {[%emt 0:04:30]} f5 {[%emt 0:03:30]} 17. exf6 {[%emt 0:00:30]} Nxf6 {[%emt 0:00:30]} 18. Qe2 {[%emt 0:01:30]} Ra8 {[%emt 0:00:30]} 19. Bh3 {[%emt 0:08:30]} Ra6 {[%emt 0:01:30]} 20. Nf3 {[%emt 0:02:30]} Bc5 {[%emt 0:02:30]} 21. Rab1 {[%emt 0:05:30]} Bd7 {[%emt 0:12:30]} 22. Bd2 {[%emt 0:05:30]} Re8 {[%emt 0:00:30]} 23. Qe5 {[%emt 0:01:30]} Rxa3 {[%emt 0:20:30]} 24. Bb4 {[%emt 0:05:30]} Bxb4 {[%emt 0:03:30]} 25. Rxb4 {[%emt 0:00:30]} Rxa2 {[%emt 0:00:30]} 26. Nxd4 {[%emt 0:00:30]} Qa5 {[%emt 0:04:30]} 27. Qd6 {[%emt 0:08:30]} Rb2 {[%emt 0:07:30]} 28. c3 {[%emt 0:07:30]} Qa2 {[%emt 0:05:53]} 29. Rxb2 {[%emt 0:03:30]} Qxb2 {[%emt 0:00:10]} 30. Bxe6+ {[%emt 0:00:30]} Bxe6 {[%emt 0:00:34]} 31. Rxe6 {[%emt 0:00:30]} Rf8 {[%emt 0:00:20]} 32. Re7 {[%emt 0:03:05]} Qb1+ {[%emt 0:13:43]} 33. Kg2 {[%emt 0:00:42]} Qxd3 {[%emt 0:00:14]} 34. Qc7 {[%emt 0:05:40]} Ng4 {[%emt 0:02:00]} 35. Rxg7+ {[%emt 0:00:37]} Kh8 {[%emt 0:00:30]} 36. Rxg4 {[%emt 0:00:04]} Rxf2+ {[%emt 0:00:26]} 37. Kxf2 {[%emt 0:00:05]} Qd2+ {[%emt 0:00:00]} 38. Ne2 {[%emt 0:00:08]} 1-0

[Event "Turkish Cup 2024"]
[Site "Denizli"]
[Date "2024.08.04"]
[Round "8"]
[White "Tirpan, Ceren"]
[Black "Celik, Ege Yigit"]
[Result "1-0"]
[ECO "E62"]
[WhiteElo "1926"]
[BlackElo "1949"]
[Annotator "RC"]
[PlyCount "89"]
[EventDate "2024.08.01"]
[EventType "swiss"]
[EventCountry "TUR"]
[SourceTitle "playchess.com"]
[Source "ChessBase"]
[SourceQuality "1"]
[TimeControl "5400+30"]

1. g3 {[%emt 0:01:00]} Nf6 {[%emt 0:01:00]} 2. Bg2 {[%emt 0:00:00]} g6 {[%emt 0:03:30]} 3. Nf3 {[%emt 0:01:00]} Bg7 {[%emt 0:00:30]} 4. O-O {[%emt 0:00:00]} O-O {[%emt 0:00:00]} 5. c4 {[%emt 0:00:00]} d6 {[%emt 0:01:00]} 6. d4 {[%emt 0:00:00]} c6 {[%emt 0:00:00]} 7. Nc3 {[%emt 0:00:00]} Bf5 {[%emt 0:00:00]} 8. Re1 {[%emt 0:03:30]} Ne4 {[%emt 0:00:30]} 9. Qb3 {[%emt 0:15:30]} Nxc3 {[%emt 0:07:30]} 10. Qxc3 {[%emt 0:02:30]} Be4 {[%emt 0:00:30]} 11. Bf4 {[%emt 0:02:30]} Nd7 {[%emt 0:07:30]} 12. Rad1 {[%emt 0:10:30]} Qb6 {[%emt 0:18:30]} 13. Bh3 {[%emt 0:05:30]} Bxf3 {[%emt 0:19:30]} 14. exf3 {[%emt 0:01:30]} Qd8 {[%emt 0:02:30]} 15. Bg5 {[%emt 0:10:30]} Re8 {[%emt 0:05:30]} 16. Qe3 {[%emt 0:05:30]} Bf6 {[%emt 0:03:30]} 17. f4 {[%emt 0:07:30]} Bxg5 {[%emt 0:01:30]} 18. fxg5 {[%emt 0:00:30]} d5 {[%emt 0:04:30]} 19. cxd5 {[%emt 0:10:30]} cxd5 {[%emt 0:00:30]} 20. Rc1 {[%emt 0:00:30]} e6 {[%emt 0:00:30]} 21. Rc3 {[%emt 0:02:30]} Nb6 {[%emt 0:02:30]} 22. Qf4 {[%emt 0:03:29]} Rc8 {[%emt 0:05:09]} 23. Rf3 {[%emt 0:01:27]} Qc7 {[%emt 0:01:10]} 24. Qh4 {[%emt 0:02:03]} Rcd8 {[%emt 0:01:59]} 25. Bf1 {[%emt 0:01:45]} a6 {[%emt 0:01:47]} 26. g4 {[%emt 0:04:19]} Nd7 {[%emt 0:05:47]} 27. Rxf7 {[%emt 0:01:37]} Kxf7 {[%emt 0:00:30]} 28. Qxh7+ {[%emt 0:00:30]} Kf8 {[%emt 0:00:00]} 29. Re3 {[%emt 0:00:42]} Qf4 {[%emt 0:00:12]} 30. Be2 {[%emt 0:01:53]} Qxg5 {[%emt 0:01:15]} 31. h4 {[%emt 0:03:48]} Qe7 {[%emt 0:04:25]} 32. Rf3+ {[%emt 0:00:30]} Nf6 {[%emt 0:00:30]} 33. Qxg6 {[%emt 0:00:00]} Qg7 {[%emt 0:00:09]} 34. Rxf6+ {[%emt 0:00:00]} Kg8 {[%emt 0:00:21]} 35. Rxe6 {[%emt 0:01:53]} Qxg6 {[%emt 0:01:04]} 36. Rxg6+ {[%emt 0:00:30]} Kf7 {[%emt 0:00:30]} 37. Bd3 {[%emt 0:00:00]} Re1+ {[%emt 0:00:00]} 38. Kg2 {[%emt 0:00:14]} Rd1 {[%emt 0:00:22]} 39. Bf5 {[%emt 0:00:00]} Rxd4 {[%emt 0:00:03]} 40. Rb6 {[%emt 0:00:00]} Rd2 {[%emt 0:03:24]} 41. h5 {[%emt 0:00:37]} d4 {[%emt 0:00:30]} 42. g5 {[%emt 0:00:00]} d3 {[%emt 0:01:19]} 43. Rxb7+ {[%emt 0:00:00]} Kg8 {[%emt 0:00:01]} 44. Be6+ {[%emt 0:00:15]} Kf8 {[%emt 0:00:36]} 45. g6 {[%emt 0:00:05]} 1-0

[Event "Turkish Cup 2024"]
[Site "Denizli"]
[Date "2024.08.04"]
[Round "8"]
[White "Cetindag, Alper"]
[Black "Akkara, Omer"]
[Result "1-0"]
[ECO "B31"]
[WhiteElo "1923"]
[BlackElo "1998"]
[Annotator "RC"]
[PlyCount "123"]
[EventDate "2024.08.01"]
[EventType "swiss"]
[EventCountry "TUR"]
[SourceTitle "playchess.com"]
[Source "ChessBase"]
[SourceQuality "1"]
[TimeControl "5400+30"]

1. e4 {[%emt 0:01:00]} c5 {[%emt 0:01:00]} 2. Nf3 {[%emt 0:00:30]} Nc6 {[%emt 0:00:30]} 3. Bb5 {[%emt 0:00:30]} g6 {[%emt 0:00:00]} 4. Bxc6 {[%emt 0:00:00]} dxc6 {[%emt 0:00:00]} 5. d3 {[%emt 0:00:00]} Bg7 {[%emt 0:00:00]} 6. h3 {[%emt 0:00:00]} e5 {[%emt 0:01:00]} 7. a4 {[%emt 0:00:00]} a5 {[%emt 0:00:00]} 8. Be3 {[%emt 0:00:00]} b6 {[%emt 0:00:00]} 9. Na3 {[%emt 0:00:00]} Qc7 {[%emt 0:01:30]} 10. Nc4 {[%emt 0:00:30]} Be6 {[%emt 0:00:30]} 11. Nfd2 {[%emt 0:05:30]} Rb8 {[%emt 0:02:30]} 12. O-O {[%emt 0:07:30]} Ne7 {[%emt 0:08:30]} 13. f4 {[%emt 0:11:30]} f6 {[%emt 0:00:30]} 14. fxe5 {[%emt 0:00:30]} fxe5 {[%emt 0:00:30]} 15. Qf3 {[%emt 0:10:30]} Nc8 {[%emt 0:10:30]} 16. Bg5 {[%emt 0:09:30]} Nd6 {[%emt 0:02:30]} 17. Qg3 {[%emt 0:12:30]} Nf7 {[%emt 0:03:30]} 18. Bf6 {[%emt 0:00:30]} O-O {[%emt 0:00:30]} 19. Bxg7 {[%emt 0:01:30]} Kxg7 {[%emt 0:00:00]} 20. Qh4 {[%emt 0:04:30]} g5 {[%emt 0:06:00]} 21. Rxf7+ {[%emt 0:02:30]} Qxf7 {[%emt 0:04:30]} 22. Qxg5+ {[%emt 0:00:30]} Qg6 {[%emt 0:00:30]} 23. Qxg6+ {[%emt 0:00:30]} hxg6 {[%emt 0:00:30]} 24. Nxe5 {[%emt 0:00:00]} Rf6 {[%emt 0:06:30]} 25. Nxc6 {[%emt 0:02:00]} Rbf8 {[%emt 0:00:30]} 26. Ne5 {[%emt 0:00:30]} g5 {[%emt 0:04:30]} 27. Ndf3 {[%emt 0:01:30]} Kh6 {[%emt 0:00:00]} 28. Kf2 {[%emt 0:01:30]} Rc8 {[%emt 0:03:00]} 29. Ke3 {[%emt 0:00:30]} Rff8 {[%emt 0:00:30]} 30. c3 {[%emt 0:03:30]} Rfe8 {[%emt 0:02:30]} 31. g4 {[%emt 0:05:30]} Rc7 {[%emt 0:02:30]} 32. d4 {[%emt 0:02:29]} cxd4+ {[%emt 0:00:30]} 33. cxd4 {[%emt 0:00:00]} Rc2 {[%emt 0:01:30]} 34. d5 {[%emt 0:00:45]} Bg8 {[%emt 0:00:30]} 35. d6 {[%emt 0:00:04]} Rxb2 {[%emt 0:05:30]} 36. d7 {[%emt 0:01:25]} Rb3+ {[%emt 0:00:30]} 37. Kf2 {[%emt 0:00:04]} Rb2+ {[%emt 0:00:30]} 38. Kg3 {[%emt 0:00:12]} Rd8 {[%emt 0:00:30]} 39. Rd1 {[%emt 0:00:24]} Rc2 {[%emt 0:01:30]} 40. Rd6+ {[%emt 0:00:41]} Kg7 {[%emt 0:00:30]} 41. Rxb6 {[%emt 0:00:56]} Rc7 {[%emt 0:01:30]} 42. Rb5 {[%emt 0:01:22]} Be6 {[%emt 0:00:30]} 43. Nxg5 {[%emt 0:00:44]} Bxd7 {[%emt 0:00:00]} 44. Nxd7 {[%emt 0:00:44]} Rc3+ {[%emt 0:00:00]} 45. Kf4 {[%emt 0:00:16]} Rxd7 {[%emt 0:00:30]} 46. Rxa5 {[%emt 0:00:00]} Re7 {[%emt 0:01:30]} 47. h4 {[%emt 0:01:25]} Rc1 {[%emt 0:00:30]} 48. h5 {[%emt 0:02:02]} Rh1 {[%emt 0:00:30]} 49. Ra6 {[%emt 0:00:16]} Rh2 {[%emt 0:00:30]} 50. a5 {[%emt 0:00:24]} Rh1 {[%emt 0:00:30]} 51. Rb6 {[%emt 0:00:43]} Rh2 {[%emt 0:00:30]} 52. a6 {[%emt 0:00:39]} Rh1 {[%emt 0:00:00]} 53. Ne6+ {[%emt 0:02:58]} Kf7 {[%emt 0:01:00]} 54. Kf5 {[%emt 0:02:13]} Rf1+ {[%emt 0:00:30]} 55. Nf4 {[%emt 0:00:07]} Ra1 {[%emt 0:01:30]} 56. g5 {[%emt 0:00:38]} Ra7 {[%emt 0:00:00]} 57. h6 {[%emt 0:00:47]} Ra8 {[%emt 0:02:00]} 58. Rb7+ {[%emt 0:00:48]} Kf8 {[%emt 0:01:30]} 59. h7 {[%emt 0:00:00]} Rh1 {[%emt 0:00:30]} 60. a7 {[%emt 0:00:00]} Rd8 {[%emt 0:01:30]} 61. Rb8 {[%emt 0:00:10]} Kg7 {[%emt 0:00:00]} 62. Rxd8 {[%emt 0:00:12]} 1-0